Cogmind - Beta 14 @@@ ROGUE MODE // 2024.09.12 @ 22:12:36 Player: SKIP Result: Destroyed by 6D-XC9(R) with Subdweller Laser Performance ------------- Evolutions (0) 0 Regions Visited (3) 600 Robots Destroyed (49) 245 Value Destroyed (962) 962 Prototype IDs (3) 60 Alien Tech Used (0) 0 Bonus (48) 48 TOTAL SCORE: 1915 Bonus ------- Follower Combat Kills 85 Friendly Fire -37 Cogmind --------- Core Integrity 0/250 Matter 224/300 Energy 34/100 System Corruption 0% Temperature Cool (6) Movement Core (1600) Ox31 Location -10/Subcaves Parts ------- > --- POWER (1) -------- Subdweller Power Source > --- PROPULSION (2) --- (None) > --- UTILITY (2) ------ Huge Storage Unit Seismic Detector > --- WEAPON (2) ------- Subdweller Laser Rocket Launcher > --- INVENTORY (25) --- Subdweller Power Source Subdweller Power Source Subdweller Power Source Light Nuclear Core Aluminum Leg Aluminum Leg Aluminum Leg Subdweller Monowheel Improved Heat Sink Disposable Heat Sink Large Matter Pod (150) Subdweller Optics Subdweller Optics Improved Terrain Scanner Core Shielding Bomb Drone Bay Subdweller Laser Subdweller Machine Gun Improved Assault Rifle Improved Assault Rifle Subdweller Shrapnel Launcher Makeshift Hammer Signal Generator Peak State ------------ > --- POWER ------------ Light Ion Engine > --- PROPULSION ------- Light Treads Light Treads > --- UTILITY ---------- Huge Storage Unit Seismic Detector > --- WEAPON ----------- Slug Cannon Makeshift Hammer > --- INVENTORY -------- Light Ion Engine Subdweller Power Source Subdweller Power Source Light Nuclear Core Aluminum Leg Aluminum Leg Aluminum Leg Subdweller Monowheel Improved Heat Sink Large Matter Pod Subdweller Optics Subdweller Optics Terrain Scanner Improved Terrain Scanner Core Shielding Bomb Drone Bay Particle Gun Subdweller Laser Improved Assault Rifle Improved Assault Rifle Improved Assault Rifle Rocket Launcher Subdweller Shrapnel Launcher Signal Generator [Rating: 19] Favorites ----------- Power Light Ion Engine Engine Light Ion Engine Propulsion Light Treads Treads Light Treads Utility Huge Storage Unit Device Cooling System Storage Huge Storage Unit Protection Core Shielding Weapon Improved Assault Rifle Energy Gun Subdweller Laser Ballistic Gun Improved Assault Rifle Ballistic Cannon Slug Cannon Launcher Subdweller Shrapnel Launcher Impact Weapon Makeshift Hammer Slashing Weapon Mining Claw Build | -11 -10 -10 -10 ------- Run | Yrd Mat Min Sub Slots Evolved . | . . . . Power . | . . . . Propulsion . | . . . . Utility . | . . . . Weapon . | . . . . Parts Attached 50 | 6 18 5 21 Power 10 | 1 3 3 3 Engine 10 | 1 3 3 3 Core . | . . . . Reactor . | . . . . Propulsion 10 | 2 5 . 3 Treads 10 | 2 5 . 3 Leg . | . . . . Wheel . | . . . . Hover . | . . . . Flight . | . . . . Utility 8 | 1 5 . 2 Device 4 | . 3 . 1 Storage 3 | 1 2 . . Processor . | . . . . Hackware . | . . . . Protection 1 | . . . 1 Artifact . | . . . . Weapon 22 | 2 5 2 13 Energy Gun 1 | . . . 1 Energy Cannon . | . . . . Ballistic Gun 12 | 2 5 1 4 Ballistic Cannon 2 | . . . 2 Launcher 3 | . . . 3 Special Weapon . | . . . . Impact Weapon 1 | . . . 1 Slashing Weapon 3 | . . 1 2 Piercing Weapon . | . . . . Special Melee Weapon . | . . . . Unidentified Prototypes 1 | . 1 . . Parts Lost 12 | . 1 1 10 Power 4 | . 1 1 2 Propulsion 5 | . . . 5 Utility . | . . . . Weapon 3 | . . . 3 Highest Loss Streak 3 | . 1 1 3 To Critical Strikes 1 | . . . 1 Average Slot Usage (%) 99 | . 98 99 99 Engine 13 | . 14 13 13 Treads 27 | . 27 28 27 Device 13 | . 13 14 13 Storage 14 | . 14 14 14 Ballistic Gun 22 | . 28 26 12 Ballistic Cannon 3 | . . . 10 Slashing Weapon 1 | . . 1 2 Peak Build Rating 19 | 6 13 17 19 Average Rating 13 | 4 9 15 16 On Entrance 9 | . 6 13 17 Naked Turns . | . . . . Heaviest Build 99 | 14 91 93 99 Greatest Support 40 | 40 40 40 40 Greatest Overweight (x) 4 | . 2 2 4 Average Overweight (x) 1 | . . 2 2 Largest Inventory Capacity 25 | 8 25 25 25 Average Capacity 20 | 7 12 25 25 Most Carried 25 | 6 10 25 25 Average Carried 17 | 3 9 19 24 Final Capacity 25 | 8 25 25 25 Final Carried 25 | 6 10 25 24 Class Distribution -------------------- 88% | Mutant 11% | Scavenger-Mutant Dominant Class ---------------- Mutant | -10/Materials Mutant | -10/Mines Mutant | -10/Subcaves Resources | -11 -10 -10 -10 ----------- Run | Yrd Mat Min Sub Matter Collected 1591 | 278 640 238 435 Remotely . | . . . . Salvage Created 1328 | 100 641 339 248 Parts 102 | 7 48 34 13 Haulers Intercepted 2 | . 2 . . Recyclers Shooed . | . . . . Parts Field Recycled . | . . . . Retrieved Matter . | . . . . Parts Self-Destructed 6 | . . . 6 Prevented . | . . . . Kills | -11 -10 -10 -10 ------- Run | Yrd Mat Min Sub Combat Hostiles Destroyed 38 | . 18 13 7 Guns 34 | . 18 13 3 Cannons 3 | . . . 3 AOE 1 | . . . 1 Classes Destroyed 9 | 2 5 . 2 Tunneler 3 | 2 . 1 . Hauler 2 | . 2 . . Recycler 2 | 1 1 . . Operator 3 | . 3 . . Watcher 1 | . 1 . . Swarmer 21 | . 12 9 . Grunt 10 | . 6 4 . Sentry 1 | . . . 1 Subdweller 6 | . . . 6 Best Kill Streak 4 | 3 3 4 2 Combat Bots Only 4 | . 3 4 2 Max Kills in Single Turn 2 | 1 2 2 1 Gunslinging 1 | . 1 . . Exploded 1 | . . . 1 Melee . | . . . . Uniques/NPCs Destroyed . | . . . . Combat | -11 -10 -10 -10 -------- Run | Yrd Mat Min Sub Hostile Shots Fired 198 | . 70 56 72 Missed 55 | . 19 19 17 Damage Taken 2147 | . 495 360 1292 Core 262 | . 48 39 175 Absorbed by Shields . | . . . . Regen/Repaired (Parts) 178 | . 178 . . Core Remaining (%) 100 | 100 . . . Volleys Fired 148 | 3 79 28 38 Largest 2 | 2 2 2 2 Hottest 100 | 40 46 46 100 Shots Fired 285 | 6 151 56 72 Gun 258 | 6 151 56 45 Cannon 21 | . . . 21 Launcher 6 | . . . 6 Special . | . . . . Kinetic 277 | 6 151 56 64 Thermal 7 | . . . 7 Explosive 1 | . . . 1 Electromagnetic . | . . . . Robot Hit Streak 10 | 4 7 10 10 Robot Miss Streak 3 | 1 3 3 3 Penetration Max . | . . . . Secondary Targets 8 | . 3 5 . Max Gunslinging Chain 1 | . 1 1 . Shots Hit Robots 182 | 4 95 34 49 Core Hits 77 | 3 39 19 16 Critical Kills 1 | . . . 1 Critical Parts Destroyed 2 | . 1 . 1 Critical Strikes 5 | . 1 . 4 Destroy 5 | . 1 . 4 Melee Attacks 21 | . . 4 17 Impact 1 | . . . 1 Slashing 20 | . . 4 16 Piercing . | . . . . Sneak Attacks . | . . . . Combat Hostiles . | . . . . Follow-up Attacks . | . . . . Damage Inflicted 3346 | 54 1173 595 1524 Guns 2337 | 54 1136 595 552 Cannons 401 | . . . 401 Explosions 571 | . . . 571 Melee . | . . . . Ramming 37 | . 37 . . Kinetic 3110 | 54 1136 595 1325 Thermal 97 | . . . 97 Explosive 102 | . . . 102 Electromagnetic . | . . . . Impact . | . . . . Slashing . | . . . . Piercing . | . . . . Highest Corruption . | . . . . Average Corruption . | . . . . Corruption Purged . | . . . . Corruption Blocked . | . . . . Overload Shots . | . . . . Overflow Damage . | . . . . Projectiles . | . . . . Explosions . | . . . . Melee . | . . . . Knockbacks 2 | . . . 2 Impact . | . . . . Kinetic 2 | . . . 2 Secondary . | . . . . Self-Inflicted Damage 19 | . . . 19 Shots 2 | . . . 2 Rammed 10 | . 10 . . Targets Rammed 11 | . 11 . . Kicked . | . . . . Crushed 1 | . 1 . . Highest Temperature 10 | . 3 . 10 Average Temperature 6 | . 3 . 10 Received Heat Transfer 438 | . 144 87 207 Siege Activations . | . . . . Robots Corrupted . | . . . . Combat Hostiles . | . . . . Parts Fried . | . . . . Impact Corruptions . | . . . . Robots Melted . | . . . . Combat Hostiles . | . . . . Parts Melted 1 | . . . 1 Heat Transferred 125 | . . . 125 Parts Sabotaged . | . . . . Parts Stolen . | . . . . Parts Stripped . | . . . . Power Chain Reactions . | . . . . Alert | -11 -10 -10 -10 ------- Run | Yrd Mat Min Sub Peak Influence 288 | 15 288 165 . Initial 43 | . 9 43 . Average 87 | 5 104 71 . Maximum Alert Level 1 | . 1 . . Low Security (%) 94 | 100 89 100 . Level 1 5 | . 10 . . Level 2 . | . . . . Level 3 . | . . . . Level 4 . | . . . . Level 5 . | . . . . High Security . | . . . . Max Security . | . . . . Squads Dispatched 5 | . 4 1 . Investigation 1 | . 1 . . Extermination . | . . . . Reinforcement 3 | . 3 . . Assault 1 | . . 1 . Garrison . | . . . . Intercept . | . . . . Searches Triggered . | . . . . Construction Impeded . | . . . . Haulers Reinforced . | . . . . Active Scanning Responses . | . . . . Cargo Convoy Interrupts . | . . . . Stealth | -11 -10 -10 -10 --------- Run | Yrd Mat Min Sub Distress Signals 4 | . 4 . . Communications Jammed . | . . . . Distress Signals . | . . . . Times Spotted 75 | . 48 16 11 Peak Tracking Total 4 | . 4 3 3 Tactical Retreats 3 | . 3 . . Traps | -11 -10 -10 -10 ------- Run | Yrd Mat Min Sub Traps Triggered 5 | . 4 . 1 Indirectly . | . . . . Trap Hack Attempts . | . . . . Triggered . | . . . . Disarmed . | . . . . Reprogrammed . | . . . . Reused . | . . . . Traps Extracted . | . . . . Installed . | . . . . Triggered . | . . . . Machines | -11 -10 -10 -10 ---------- Run | Yrd Mat Min Sub Machines Disabled . | . . . . Max in Single Turn . | . . . . Machines Repaired . | . . . . Machines Dismantled . | . . . . Machines Sabotaged . | . . . . Overloaded Fab Kills . | . . . . Hacking | -11 -10 -10 -10 --------- Run | Yrd Mat Min Sub Machines Accessed 8 | . 5 1 2 Terminals 4 | . 4 . . Fabricators . | . . . . Repair Stations 1 | . 1 . . Recycling Units . | . . . . Scanalyzers . | . . . . Garrison Access . | . . . . Total Hacks 21 | . 17 1 3 Successful 17 | . 13 1 3 Failed 4 | . 4 . . Catastrophic 1 | . 1 . . Database Lockouts . | . . . . Manual 6 | . 6 . . Terminals 9 | . 9 . . Fabricators . | . . . . Repair Stations 8 | . 8 . . Recycling Units . | . . . . Scanalyzers . | . . . . Garrison Access . | . . . . Terminal Hacks 7 | . 3 1 3 Record 2 | . 1 . 1 Part Schematic 1 | . 1 . . Prototype ID Bank 1 | . 1 . . Open Door 2 | . . 1 1 Release Object 1 | . . . 1 Fabricator Hacks . | . . . . Repair Station Hacks 7 | . 7 . . Scan Component 4 | . 4 . . Repair 3 | . 3 . . Recycling Unit Hacks . | . . . . Scanalyzer . | . . . . Garrison Access Hacks . | . . . . Unauthorized Hacks 3 | . 3 . . Terminals 3 | . 3 . . Botnet 3 | . 3 . . Fabricators . | . . . . Repair Stations . | . . . . Recycling Units . | . . . . Scanalyzers . | . . . . Garrison Access . | . . . . Data Cores Recovered . | . . . . Used . | . . . . Hacking Detections 4 | . 4 . . Full Trace Events 1 | . 1 . . Feedback Events . | . . . . Feedback Blocked . | . . . . Robot Schematics Acquired . | . . . . Robots Built . | . . . . Authchips . | . . . . Time . | . . . . Total Robot Build Rating . | . . . . Part Schematics Acquired 1 | . 1 . . Parts Built . | . . . . Authchips . | . . . . Time . | . . . . Total Part Build Rating . | . . . . Parts Repaired 3 | . 3 . . Time 78 | . 78 . . Parts Recycled . | . . . . Recycled Matter . | . . . . Retrieved Matter . | . . . . Retrieved Components . | . . . . Parts Scanalyzed . | . . . . Part Schematics Acquired . | . . . . Parts Damaged . | . . . . Bothacking | -11 -10 -10 -10 ------------ Run | Yrd Mat Min Sub Used RIF Installer . | . . . . Robots Hacked . | . . . . Non-combat . | . . . . Combat . | . . . . Robot Hacks Applied . | . . . . Relay Couplers Released . | . . . . Fabnet Peak Effective % . | . . . . Robots Rewired . | . . . . Allies Hacked . | . . . . Hacks Repelled . | . . . . Allies | -11 -10 -10 -10 -------- Run | Yrd Mat Min Sub Total Allies 1 | . . 1 . Largest Group 1 | . . 1 1 Highest-Rated Group 31 | . . 31 31 Highest-Rated Ally 31 | . . 31 31 Total Orders . | . . . . Ally Attacks 11 | . . 8 3 Total Damage 212 | . . 147 65 Kills 3 | . . 3 . Allies Corrupted . | . . . . Allies Melted . | . . . . Intel | -11 -10 -10 -10 ------- Run | Yrd Mat Min Sub Robot Analysis Total . | . . . . Derelict Logs Recovered 2 | . . 1 1 Drone Launches . | . . . . Drone Recoveries . | . . . . Exploration | -11 -10 -10 -10 ------------- Run | Yrd Mat Min Sub Turns Passed 6916 | 114 2425 2041 2336 Spaces Moved 2402 | 62 1115 590 635 Core 10 | 10 . . . Treads 2392 | 52 1115 590 635 Legs . | . . . . Wheels . | . . . . Hover . | . . . . Flight . | . . . . Fastest Speed 50 | 50 160 320 320 Average Speed 249 | 142 177 320 320 Slowest Speed 480 | 160 320 320 480 Overloaded Moves . | . . . . Propulsion Burnouts . | . . . . Robots Hopped . | . . . . Cave-ins Triggered . | . . . . Exploration Rate (%) 59 | 5 99 95 40 Regions Visited 3 Branch Regions 2 Pre-discovered Areas . | . . . . Known Exits Taken . | . . . . Unknown Exits Taken 3 | 1 1 1 . Scrap Searched 3 | . . 1 2 Spaces Dug 1 | . . 1 . Terrain Destroyed 56 | . . 1 55 Melee 1 | . . 1 . Projectile 7 | . . . 7 AOE 48 | . . . 48 Terrain Rammed . | . . . . Walls Destroyed . | . . . . Machines Disabled . | . . . . Actions | -11 -10 -10 -10 --------- Run | Yrd Mat Min Sub Total 2999 | 82 1405 686 826 Wait 281 | . 163 31 87 Move 2399 | 61 1114 589 635 Hop . | . . . . Pick Up 59 | 12 9 21 17 Fast Attach 13 | . 12 . 1 Attach 15 | 6 1 1 7 Detach . | . . . . Swap 22 | . 5 4 13 Drop 30 | . 11 8 11 Fire 148 | 3 79 28 38 Melee 21 | . . 4 17 Ram . | . . . . Kick . | . . . . Crush 11 | . 11 . . Escape Stasis . | . . . . Rewire . | . . . . Trap . | . . . . Miscellaneous . | . . . . Route ------- -11/Scrapyard -10/Materials (discovered 5 exits: [*Mat x3] / *Min / *Sub) -10/Mines (discovered 4 exits: [*Mat x2] / [*Exi] / *Sub) -10/Subcaves (discovered 1 exit: [*Mat]) History --------- Turn | Location | Event 23 | -11/Scrapyard | Discovered new exit (range 16) 115 | -11/Scrapyard | Entered Materials 312 | -10/Materials | Build established: Mutant 724 | -10/Materials | Discovered new exit (range 8) 1058 | -10/Materials | Discovered new exit (range 13) 1184 | -10/Materials | Discovered new exit (range 8) 1282 | -10/Materials | Discovered new exit (range 15) 1531 | -10/Materials | Discovered new exit (range 11) 1628 | -10/Materials | Repaired Lgt. Treads 1655 | -10/Materials | Repaired Lgt. Treads 1683 | -10/Materials | Repaired Heat Sink 2540 | -10/Materials | Entered Mines 2596 | -10/Mines | Discovered new exit (range 12) 2641 | -10/Mines | Found the Drone Emporium 2660 | -10/Mines | Found Prototype Device 2808 | -10/Mines | Learned Materials emergency access door positions 3029 | -10/Mines | Received a Rocket Launcher from a helpful Derelict 3521 | -10/Mines | Deemed a non-threat by the Exiles lab entrance 3525 | -10/Mines | Discovered new exit (range 5) 3840 | -10/Mines | Discovered new exit (range 9) 4024 | -10/Mines | Met a Derelict testing a Signal Generator 4078 | -10/Mines | Found Signal Generator 4559 | -10/Mines | Discovered new exit (range 6) 4581 | -10/Mines | Entered Subcaves 4581 | -10/Subcaves | Accompanied by 1 ally 4640 | -10/Subcaves | Shifting Twisted Machinery released Sub. Monowheel 4664 | -10/Subcaves | Shifting Twisted Machinery released Slug Cannon 5350 | -10/Subcaves | Core integrity fell below 50% 5436 | -10/Subcaves | Build established: Scavenger-Mutant 6092 | -10/Subcaves | Discovered new exit (range 16) 6135 | -10/Subcaves | Shifting Twisted Machinery released Sub. Shrapnel Launcher 6154 | -10/Subcaves | Shifting Twisted Machinery released Mak. Hammer 6211 | -10/Subcaves | Build established: Mutant 6281 | -10/Subcaves | Learned Materials trap positions 6901 | -10/Subcaves | A Subdweller sparked back to life 6901 | -10/Subcaves | A Subdweller sparked back to life 6911 | -10/Subcaves | Core integrity fell below 20% 6917 | -10/Subcaves | Destroyed by 6D-XC9(R) with Subdweller Laser Last Messages --------------- 06595_ Subatomizers dissect the Sub. Monowheel. 06618_ Acquired Disposable Heat Sink. 06619_ Acquired 54 matter. 06620_ Subatomizers dissect the Sub. Monowheel, destroying it. 06628_ Acquired Sub. Power Source. 06632_ Dropped Particle Gun. 06633_ Acquired Sub. Laser. 06634_ Acquired 30 matter. 06877_ Sub. Power Source shoots sparks and powers down. 06901_ QK-0ET(R) creaks and sparks as it begins to move. 06901_ 5M-TD8(R) creaks and sparks as it begins to move. 06907_ QK-0ET(R) destroyed. 06909_ Lgt. Treads destroyed. 06913_ Sub. Shrapnel Launcher destroyed. 06915_ Lgt. Treads destroyed. Map ----- +----------------------------------------------------+ | ???????????## ## ### ##??# ## ## ##??? | | ???????????# ## #???## # ""^^ #???? | | ???????????# ##### ! " #???? | | ???????????## ##"""""! #???? | | ????????????# ## """" & # ## ##???? | | ???????????## ! #### """ ####### #????? | | ???????????# %%### "" "#????? #????? | | ???????????# [= & " "##????# ????? | | ???????????## & #????? ???? | | ????????????## #????# ??? | | ????????????## ## #????## #?? | | ????????????# #### ## ####?????#### ##?? | | ????????????## #?# ###???????????? ##??? | | ???????????### ##?## #??????????????##???? | | ???????????# #???# #???????????????????? | | ???????????## ###?# ## #???????????????????? | | ??????????### #?# ## #???????????????????? | | ??????????# ### ### #???????????????????? | | ?????????## ## ####???????????????????? | | ?????????# #### ## #?????????????????????? | | ?????????### #??## ### #?????????????????????? | | ???????????# #???##??## #?????????????????????? | | ???????????# #???????## #?????????????????????? | | ???????????# #???????# ##????????????????????? | | ???????????## ##???????## #????????????????????? | | ????????????###?????????#@ #????????????????????? | | ??????????????????????? #?????????????????? | | ??????????????????????# ##?????????????????? | | ?????????????????????# R #?????????????????? | | ?????????????????????# ;????????????????? | | ?????????????????????## R ;;??????????????? | | ?????????????????????? ; ????????????? | | ?????????????????????? ???????????? | | ????????????????????? = ???????????? | | ????????????????????? ;; ; ???????????? | | ???????????????????? ;;;;####????????????? | | ????????????????????# ## ###???????????????? | | ????????????????????#### ##?##?????????????????? | | ???????????????????????? #??????????????????????? | | ????????????????????????# ???????????????????????? | | ????????????????????????? ???????????????????????? | | ?????????????????????????????????????????????????? | | ?????????????????????????????????????????????????? | | ?????????????????????????????????????????????????? | | ?????????????????????????????????????????????????? | | ?????????????????????????????????????????????????? | | ?????????????????????????????????????????????????? | | ?????????????????????????????????????????????????? | | ?????????????????????????????????????????????????? | | ?????????????????????????????????????????????????? | +----------------------------------------------------+ Best States ------------- Heat Dissipation 47 Energy Generation 15 Energy Capacity 250 Matter Stores 300 Matter Capacity 300 Sight Range 16 Terrain Scan Density 10 Core Shielding 20 Evasion (%) 50 Recoil Reduction 2 Item Schematics ----------------- Lgt. Treads | -10/Materials | Hacked Robot Schematics ------------------ None Fabricated ------------ Nothing Alien Tech Used ----------------- None Achievements -------------- None Challenges ------------ None Game ------ Seed PoweredGammaCloak Manual? 0 Play Time 00:31:52 Cumulative 45.5 hours Start 2024.09.12 @ 21:40:48 End 2024.09.12 @ 22:12:36 Sessions 1 Manual Loads 0 Difficulty Rogue Special Mode None Game No. 78 Rogue 78 Adventurer 0 Explorer 0 Win Type - Total 0 Types 0/0/0/0/0/0/0/0/0 Lore% 42 Gallery% 30 Achievement% 26 Wizard Run 0 Options --------- Layout 1 ASCII 0 Keyboard 0 Movement Mouse Keybinds 0 Fullscreen 2 Font 24/Smallcaps Map View 50x35 Zoom Use 0% Tactical HUD 1 Map Filters NONE Filters NONE Steam 1 RUN: cf4cea22-4e62-46f8-a514-8250b2ed7461